fUST/lending_fUST_20240726
["ID","MTS","AMOUNT","RATE_DAILY","PERIOD"]
[333192346,1721932242724,-1241.27,0.00013698,2]
[333192347,1721932242734,-512.45577569,0.00013698,2]
[333192348,1721932242743,-500.0,0.00013698,2]
[333192349,1721932242753,-2948.89,0.00013698,2]
[333192350,1721932242763,-1679.81,0.00013698,2]
[333192351,1721932242773,-500.0,0.00013698,2]
[333192353,1721932242783,-500.0,0.00013698,2]
[333192355,1721932242794,-569.73,0.00013698,2]
[333192357,1721932242804,-500.0,0.00013698,2]
[333192359,1721932242815,-2457.08,0.00013698,2]
[333192361,1721932242825,-590.28328048,0.00013698,2]
[333192362,1721932242835,-681.55,0.00013698,2]
[333192364,1721932242845,-500.0,0.00013698,2]
[333192366,1721932242855,-500.0,0.00013698,2]
[333192368,1721932242865,-151.0,0.00013698,2]
[333192370,1721932242874,-500.0,0.00013698,2]
[333192371,1721932242884,-500.0,0.00013698,2]
[333192372,1721932242895,-988.48,0.00013698,2]
[333192373,1721932242905,-500.0,0.00013698,2]
[333192374,1721932242915,-500.0,0.00013698,2]
[333192375,1721932242925,-1356.76,0.00013698,2]
[333192376,1721932242935,-500.0,0.00013698,2]
[333192377,1721932242947,-947.61,0.00013698,2]
[333192379,1721932242957,-500.0,0.00013698,2]
[333192380,1721932242967,-1367.3,0.00013698,2]
[333192381,1721932242977,-500.0,0.00013698,2]
[333192382,1721932242988,-1527.38,0.00013698,2]
[333192383,1721932242998,-533.43,0.00013698,2]
[333192384,1721932243007,-500.0,0.00013698,2]
[333192385,1721932243017,-705.53,0.00013698,2]
[333192386,1721932243028,-287.90754429,0.00013698,2]
[333192387,1721932243038,-210.31570925,0.00013698,2]
[333192388,1721932243047,-1293.44,0.00013698,2]
[333192389,1721932243057,-500.0,0.00013698,2]
[333192390,1721932243067,-500.0,0.00013698,2]
[333192391,1721932243077,-976.33,0.00013698,2]
[333192392,1721932243087,-500.0,0.00013698,2]
[333192393,1721932243098,-503.42817,0.00013698,2]
[333192394,1721932243107,-500.0,0.00013698,2]
[333192395,1721932243117,-1813.42,0.00013698,2]
[333192396,1721932243127,-500.0,0.00013698,2]
[333192397,1721932243136,-197.23084728,0.00013698,2]
[333192398,1721932243146,-594.27662455,0.00013698,2]
[333192399,1721932243156,-186.31735462,0.00013698,2]
[333192400,1721932243166,-500.0,0.00013698,2]
[333192401,1721932243176,-1813.42,0.00013698,2]
[333192402,1721932243185,-386.90711069,0.00013698,2]
[333192403,1721932243198,-500.0,0.00013698,2]
[333192404,1721932243207,-500.0,0.00013698,2]
[333192405,1721932243217,-1813.42,0.00013698,2]
[333192406,1721932243226,-500.0,0.00013698,2]
[333192407,1721932243237,-1813.42,0.00013698,2]
[333192408,1721932243247,-500.0,0.00013698,2]
[333192409,1721932243258,-188.66237129,0.00013698,2]
[333192410,1721932243267,-500.0,0.00013698,2]
[333192411,1721932243279,-500.0,0.00013698,2]
[333192412,1721932243290,-500.0,0.00013698,2]
[333192413,1721932243300,-500.0,0.00013698,2]
[333192414,1721932243310,-626.86520636,0.00013698,2]
[333192415,1721932243320,-500.0,0.00013698,2]
[333192416,1721932243330,-500.0,0.00013698,2]
[333192417,1721932243339,-500.0,0.00013698,2]
[333192418,1721932243349,-500.0,0.00013698,2]
[333192419,1721932243358,-510.81072132,0.00013698,2]
[333192420,1721932243367,-481.11825273,0.00013698,2]
[333192421,1721932243377,-500.0,0.00013698,2]
[333192422,1721932243387,-500.0,0.00013698,2]
[333192423,1721932243396,-1813.42,0.00013698,2]
[333192424,1721932243406,-500.0,0.00013698,2]
[333192425,1721932243415,-250.86541795,0.00013698,2]
[333192426,1721932243425,-500.0,0.00013698,2]
[333192427,1721932243434,-500.0,0.00013698,2]
[333192428,1721932243447,-500.0,0.00013698,2]
[333192429,1721932243457,-1813.42,0.00013698,2]
[333192430,1721932243467,-1813.42,0.00013698,2]
[333192431,1721932243477,-1813.42,0.00013698,2]
[333192432,1721932243487,-1813.42,0.00013698,2]
[333192433,1721932243498,-1813.42,0.00013698,2]
[333192434,1721932243508,-3000.0,0.00013699,2]
[333192435,1721932243519,-1084.712079,0.00013699,2]
[333192436,1721932243530,-293.9641968,0.000137,2]
[333192437,1721932243540,-153.0,0.000137,2]
[333192438,1721932243551,-153.0,0.000137,2]
[333192439,1721932243563,-153.0,0.000137,2]
[333192440,1721932243574,-153.0,0.000137,2]
[333192441,1721932243584,-153.0,0.00013749,2]
[333192442,1721932243595,-153.0,0.00013749,2]
[333192443,1721932243605,-153.0,0.00013749,2]
[333192444,1721932243616,-153.0,0.00013749,2]
[333192445,1721932243627,-153.0,0.00013749,2]
[333192446,1721932243638,-153.0,0.00013749,2]
[333192447,1721932243648,-153.0,0.00013749,2]
[333192448,1721932243658,-153.0,0.00013749,2]
[333192449,1721932243667,-153.0,0.00013749,2]
[333192450,1721932243677,-153.0,0.00013749,2]
[333192451,1721932243686,-153.0,0.00013749,2]
[333192452,1721932243697,-153.0,0.00013749,2]
[333192453,1721932243707,-153.0,0.00013749,2]
[333192454,1721932243716,-153.0,0.00013749,2]
[333192455,1721932243725,-153.0,0.00013749,2]
[333192456,1721932243735,-153.0,0.00013749,2]
[333192457,1721932243744,-153.0,0.00013749,2]
[333192458,1721932243754,-153.0,0.00013749,2]
[333192459,1721932243764,-153.0,0.00013749,2]
[333192460,1721932243773,-153.0,0.00013749,2]
[333192461,1721932243783,-153.0,0.00013749,2]
[333192462,1721932243792,-153.0,0.00013749,2]
[333192463,1721932243801,-153.0,0.00013749,2]
[333192464,1721932243811,-153.0,0.00013749,2]
[333192465,1721932243822,-153.0,0.00013749,2]
[333192466,1721932243832,-153.0,0.00013749,2]
[333192467,1721932243841,-153.0,0.00013749,2]
[333192468,1721932243851,-153.0,0.00013749,2]
[333192469,1721932243861,-153.0,0.00013749,2]
[333192470,1721932243870,-432.116692,0.00013758,2]
[333192471,1721932244023,-455.854631,0.00013758,2]
[333192472,1721932244032,-432.116692,0.00013928,2]
[333192473,1721932244042,-455.854631,0.00013928,2]
[333192474,1721932244052,-151.0,0.00013954,2]
[333192475,1721932244062,-151.0,0.00013961,2]
[333192476,1721932244072,-151.0,0.00013961,2]
[333192477,1721932244082,-151.0,0.00013961,2]
[333192478,1721932244092,-151.0,0.00013962,2]
[333192479,1721932244102,-151.0,0.00013962,2]
[333192480,1721932244112,-151.0,0.00013962,2]
[333192481,1721932244121,-151.0,0.00013962,2]
[333192482,1721932244131,-151.0,0.00013971,2]
[333192483,1721932244141,-151.0,0.00013971,2]
[333192484,1721932244151,-151.0,0.00013971,2]
[333192485,1721932244160,-151.0,0.00013971,2]
[333192486,1721932244170,-179.345121,0.00013971,2]
[333192487,1721932244179,-179.345121,0.00013971,2]
[333192488,1721932244189,-151.0,0.00013972,2]
[333192489,1721932244204,-500.0,0.00013972,2]
[333192490,1721932244214,-500.0,0.00013972,2]
[333192491,1721932244224,-585.68,0.00013972,2]
[333192492,1721932244235,-500.0,0.00013972,2]
[333192493,1721932244244,-344.94435489,0.00013972,2]
[333192494,1721932244254,-500.0,0.00013972,2]
[333192495,1721932244263,-565.93,0.00013972,2]
[333192496,1721932244274,-672.46,0.00013972,2]
[333192497,1721932244284,-730.6,0.00013972,2]
[333192498,1721932244295,-500.0,0.00013972,2]
[333192499,1721932244305,-500.0,0.00013972,2]
[333192500,1721932244315,-500.0,0.00013972,2]
[333192501,1721932244325,-551.33,0.00013972,2]
[333192502,1721932244335,-500.0,0.00013972,2]
[333192503,1721932244344,-500.0,0.00013972,2]
[333192504,1721932244354,-1095.31,0.00013972,2]
[333192505,1721932244363,-500.0,0.00013972,2]
[333192506,1721932244373,-500.0,0.00013972,2]
[333192507,1721932244383,-500.0,0.00013972,2]
[333192508,1721932244392,-500.0,0.00013972,2]
[333192509,1721932244402,-500.0,0.00013972,2]
[333192510,1721932244411,-500.0,0.00013972,2]
[333192511,1721932244421,-500.0,0.00013972,2]
[333192512,1721932244432,-500.0,0.00013972,2]
[333192513,1721932244442,-500.0,0.00013972,2]
[333192514,1721932244452,-500.0,0.00013972,2]
[333192515,1721932244462,-1209.31,0.00013972,2]
[333192516,1721932244471,-778.69,0.00013972,2]
[333192517,1721932244480,-786.05,0.00013972,2]
[333192518,1721932244491,-871.4,0.00013972,2]
[333192519,1721932244500,-500.0,0.00013972,2]
[333192520,1721932244510,-500.0,0.00013972,2]
[333192521,1721932244519,-151.0,0.00013972,2]
[333192522,1721932244529,-500.0,0.00013972,2]
[333192523,1721932244539,-500.0,0.00013972,2]
[333192524,1721932244548,-500.0,0.00013972,2]
[333192525,1721932244559,-500.0,0.00013972,2]
[333192526,1721932244568,-500.0,0.00013972,2]
[333192527,1721932244578,-1184.69,0.00013972,2]
[333192528,1721932244588,-500.0,0.00013972,2]
[333192529,1721932244598,-151.0,0.00013972,2]
[333192530,1721932244607,-500.0,0.00013972,2]
[333192531,1721932244617,-500.0,0.00013972,2]
[333192532,1721932244627,-500.0,0.00013972,2]
[333192533,1721932244637,-500.0,0.00013972,2]
[333192534,1721932244647,-2092.76,0.00013972,2]
[333192535,1721932244657,-500.0,0.00013972,2]
[333192536,1721932244667,-500.0,0.00013972,2]
[333192537,1721932244677,-500.0,0.00013972,2]
[333192538,1721932244687,-500.0,0.00013972,2]
[333192539,1721932244698,-500.0,0.00013972,2]
[333192540,1721932244707,-500.0,0.00013972,2]
[333192541,1721932244715,-500.0,0.00013972,2]
[333192542,1721932244724,-500.0,0.00013972,2]
[333192543,1721932244734,-150.08755979,0.00013972,2]
[333192544,1721932244744,-500.0,0.00013972,2]
[333192545,1721932244753,-500.0,0.00013972,2]
[333192546,1721932244762,-1331.71,0.00013972,2]
[333192547,1721932244771,-500.0,0.00013972,2]
[333192548,1721932244782,-500.0,0.00013972,2]
[333192549,1721932244791,-500.0,0.00013972,2]
[333192550,1721932244801,-500.0,0.00013972,2]
[333192551,1721932244811,-500.0,0.00013972,2]
[333192552,1721932244820,-570.44,0.00013972,2]
[333192553,1721932244831,-500.0,0.00013972,2]
[333192554,1721932244841,-503.71130768,0.00013972,2]
[333192555,1721932244850,-500.0,0.00013972,2]
[333192556,1721932244859,-715.998133,0.00013972,2]
[333192557,1721932244869,-841.82,0.00013972,2]
[333192558,1721932244879,-715.998133,0.00013972,2]
[333192559,1721932244889,-500.0,0.00013972,2]
[333192560,1721932244898,-500.0,0.00013972,2]
[333192561,1721932244908,-646.51,0.00013972,2]
[333192562,1721932244918,-935.22,0.00013972,2]
[333192563,1721932244927,-500.0,0.00013972,2]
[333192564,1721932244937,-500.0,0.00013972,2]
[333192565,1721932244948,-610.0,0.00013972,2]
[333192566,1721932244958,-151.0,0.00013972,2]
[333192567,1721932244967,-151.0,0.00013972,2]
[333192568,1721932244977,-1213.76,0.00013972,2]
[333192569,1721932244987,-500.0,0.00013972,2]
[333192570,1721932244997,-581.19,0.00013972,2]
[333192571,1721932245007,-1150.51,0.00013972,2]
[333192572,1721932245018,-500.0,0.00013972,2]
[333192573,1721932245028,-500.0,0.00013972,2]
[333192574,1721932245038,-500.0,0.00013972,2]
[333192575,1721932245048,-500.0,0.00013972,2]
[333192576,1721932245057,-271.148204,0.00013972,2]
[333192577,1721932245067,-500.0,0.00013972,2]
[333192578,1721932245076,-500.0,0.00013972,2]
[333192579,1721932245086,-772.62,0.00013972,2]
[333192580,1721932245096,-500.0,0.00013972,2]
[333192581,1721932245105,-1147.1,0.00013972,2]
[333192582,1721932245115,-500.0,0.00013972,2]
[333192583,1721932245125,-500.0,0.00013972,2]
[333192584,1721932245136,-1301.14,0.00013972,2]
[333192585,1721932245146,-500.0,0.00013972,2]
[333192586,1721932245156,-500.0,0.00013972,2]
[333192587,1721932245166,-500.0,0.00013972,2]
[333192588,1721932245176,-736.76,0.00013972,2]
[333192589,1721932245185,-500.0,0.00013972,2]
[333192590,1721932245195,-503.96679384,0.00013972,2]
[333192591,1721932245206,-500.0,0.00013972,2]
[333192592,1721932245216,-500.0,0.00013972,2]
[333192593,1721932245226,-660.58,0.00013972,2]
[333192594,1721932245236,-500.0,0.00013972,2]
[333192595,1721932245247,-555.73,0.00013972,2]
[333192596,1721932245256,-500.0,0.00013972,2]
[333192597,1721932245266,-500.0,0.00013972,2]
[333192598,1721932245275,-500.0,0.00013972,2]
[333192599,1721932245284,-500.0,0.00013972,2]
[333192600,1721932245296,-1061.04,0.00013972,2]
[333192601,1721932245305,-1089.93,0.00013972,2]
[333192602,1721932245315,-368.21298626,0.00013972,2]
[333192603,1721932245325,-500.0,0.00013972,2]
[333192604,1721932245335,-725.61,0.00013972,2]
[333192606,1721932245344,-500.0,0.00013972,2]
[333192607,1721932245354,-1239.827232,0.00013972,2]
[333192609,1721932245363,-151.0,0.00013972,2]
[333192611,1721932245373,-1239.827232,0.00013972,2]
[333192613,1721932245383,-151.0,0.00013972,2]
[333192615,1721932245393,-500.0,0.00013972,2]
[333192617,1721932245402,-500.0,0.00013972,2]
[333192619,1721932245412,-500.0,0.00013972,2]
[333192621,1721932245422,-500.0,0.00013972,2]
[333192623,1721932245431,-500.0,0.00013972,2]
[333192625,1721932245441,-500.0,0.00013972,2]
[333192627,1721932245452,-984.29,0.00013972,2]
[333192629,1721932245462,-500.0,0.00013972,2]
[333192631,1721932245472,-500.0,0.00013972,2]
[333192633,1721932245483,-500.0,0.00013972,2]
[333192635,1721932245492,-810.81,0.00013972,2]
[333192637,1721932245503,-500.0,0.00013972,2]
[333192639,1721932245513,-1061.88,0.00013972,2]
[333192640,1721932245523,-500.0,0.00013972,2]
[333192643,1721932245533,-748.53,0.00013972,2]
[333192644,1721932245543,-500.0,0.00013972,2]
[333192647,1721932245552,-500.0,0.00013972,2]
[333192649,1721932245562,-583.9,0.00013972,2]
[333192652,1721932245572,-500.0,0.00013972,2]
[333192654,1721932245582,-1025.05,0.00013972,2]
[333192656,1721932245591,-500.0,0.00013972,2]
[333192658,1721932245601,-151.0,0.00013972,2]
[333192661,1721932245611,-500.0,0.00013972,2]
[333192664,1721932245620,-151.0,0.00013972,2]
[333192666,1721932245629,-500.0,0.00013972,2]
[333192668,1721932245639,-500.0,0.00013972,2]
[333192670,1721932245648,-500.0,0.00013972,2]
[333192671,1721932245657,-500.0,0.00013972,2]
[333192673,1721932245668,-500.0,0.00013972,2]
[333192675,1721932245678,-500.0,0.00013972,2]
[333192677,1721932245687,-873.61,0.00013972,2]
[333192680,1721932245699,-500.0,0.00013972,2]
[333192682,1721932245709,-500.0,0.00013972,2]
[333192684,1721932245720,-151.0,0.00013972,2]
[333192686,1721932245729,-500.0,0.00013972,2]
[333192687,1721932245738,-568.25,0.00013972,2]
[333192690,1721932245748,-151.0,0.00013972,2]
[333192691,1721932245757,-500.0,0.00013972,2]
[333192694,1721932245767,-577.62,0.00013972,2]
[333192698,1721932245779,-500.0,0.00013972,2]
[333192700,1721932245788,-1016.64,0.00013972,2]
[333192702,1721932245798,-762.91,0.00013972,2]
[333192704,1721932245807,-500.0,0.00013972,2]
[333192706,1721932245818,-500.0,0.00013972,2]
[333192708,1721932245827,-500.0,0.00013972,2]
[333192710,1721932245837,-400.88922609,0.00013972,2]
[333192711,1721932245847,-500.0,0.00013972,2]
[333192712,1721932245856,-500.0,0.00013972,2]
[333192713,1721932245866,-583.71,0.00013972,2]
[333192714,1721932245876,-500.0,0.00013972,2]
[333192716,1721932245886,-500.0,0.00013972,2]
[333192718,1721932245895,-943.23,0.00013972,2]
[333192720,1721932245904,-1189.41,0.00013972,2]
[333192722,1721932245914,-159.2254058,0.00013972,2]
[333192723,1721932245924,-500.0,0.00013972,2]
[333192724,1721932245933,-500.0,0.00013972,2]
[333192725,1721932245942,-500.0,0.00013972,2]
[333192726,1721932245952,-500.0,0.00013972,2]
[333192727,1721932245962,-2677.53,0.00013972,2]
[333192728,1721932245974,-500.0,0.00013972,2]
[333192729,1721932245985,-151.0,0.00013972,2]
[333192730,1721932245996,-151.416266,0.00013972,2]
[333192731,1721932246007,-500.0,0.00013972,2]
[333192732,1721932246016,-509.17657839,0.00013972,2]
[333192733,1721932246027,-500.0,0.00013972,2]
[333192734,1721932246037,-1535.05,0.00013972,2]
[333192735,1721932246047,-151.0,0.00013972,2]
[333192736,1721932246057,-558.01,0.00013972,2]
[333192737,1721932246067,-500.0,0.00013972,2]
[333192738,1721932246079,-500.0,0.00013972,2]
[333192739,1721932246090,-151.0,0.00013972,2]
[333192740,1721932246101,-500.0,0.00013972,2]
[333192741,1721932246111,-500.0,0.00013972,2]
[333192742,1721932246121,-803.44,0.00013972,2]
[333192743,1721932246133,-500.0,0.00013972,2]
[333192744,1721932246145,-763.15,0.00013972,2]
[333192745,1721932246156,-504.34113146,0.00013972,2]
[333192746,1721932246167,-500.0,0.00013972,2]
[333192747,1721932246179,-2047.62,0.00013972,2]
[333192748,1721932246190,-500.0,0.00013972,2]
[333192749,1721932246201,-930.7,0.00013972,2]
[333192750,1721932246214,-500.0,0.00013972,2]
[333192751,1721932246222,-500.0,0.00013972,2]
[333192752,1721932246234,-500.0,0.00013972,2]
[333192753,1721932246245,-500.0,0.00013972,2]
[333192754,1721932246255,-151.0,0.00013972,2]
[333192755,1721932246265,-500.0,0.00013972,2]
[333192756,1721932246274,-505.73877375,0.00013972,2]
[333192757,1721932246296,-500.0,0.00013972,2]
[333192760,1721932246306,-1645.24,0.00013972,2]
[333192763,1721932246316,-547.02724119,0.00013972,2]
[333192765,1721932246327,-1866.43,0.00013972,2]
[333192767,1721932246336,-1767.75,0.00013972,2]
[333192769,1721932246346,-500.0,0.00013972,2]
[333192771,1721932246356,-500.0,0.00013972,2]
[333192773,1721932246366,-500.0,0.00013972,2]
[333192775,1721932246376,-500.0,0.00013972,2]
[333192777,1721932246386,-1410.46,0.00013972,2]
[333192779,1721932246396,-927.64,0.00013972,2]
[333192781,1721932246406,-375.7699828,0.00013972,2]
[333192783,1721932246415,-500.0,0.00013972,2]
[333192785,1721932246426,-500.0,0.00013972,2]
[333192787,1721932246437,-2490.27,0.00013972,2]
[333192788,1721932246448,-500.0,0.00013972,2]
[333192790,1721932246459,-2655.16,0.00013972,2]
[333192792,1721932246469,-500.0,0.00013972,2]
[333192794,1721932246479,-500.0,0.00013972,2]
[333192796,1721932246489,-647.76,0.00013972,2]
[333192797,1721932246499,-151.0,0.00013972,2]
[333192798,1721932246509,-500.0,0.00013972,2]
[333192799,1721932246519,-500.0,0.00013972,2]
[333192800,1721932246529,-500.0,0.00013972,2]
[333192801,1721932246540,-500.0,0.00013972,2]
[333192802,1721932246552,-9389.14,0.00013972,2]
[333192803,1721932246564,-500.0,0.00013972,2]
[333192804,1721932246575,-500.0,0.00013972,2]
[333192805,1721932246587,-500.0,0.00013972,2]
[333192806,1721932246598,-500.0,0.00013972,2]
[333192807,1721932246610,-922.75,0.00013972,2]
[333192808,1721932246620,-3968.3,0.00013972,2]
[333192809,1721932246630,-500.0,0.00013972,2]
[333192810,1721932246641,-179.345121,0.00013972,2]
[333192811,1721932246651,-545.85386297,0.00013972,2]
[333192812,1721932246663,-179.345121,0.00013972,2]
[333192813,1721932246673,-500.0,0.00013972,2]
[333192814,1721932246683,-1516.91,0.00013972,2]
[333192815,1721932246695,-500.0,0.00013972,2]
[333192816,1721932246705,-1773.9,0.00013972,2]
[333192817,1721932246715,-500.0,0.00013972,2]
[333192818,1721932246726,-500.0,0.00013972,2]
[333192819,1721932246736,-504.33677994,0.00013972,2]
[333192820,1721932246746,-500.0,0.00013972,2]
[333192821,1721932246757,-500.0,0.00013972,2]
[333192822,1721932246768,-1577.63,0.00013972,2]
[333192823,1721932246779,-542.46,0.00013972,2]
[333192824,1721932246789,-500.0,0.00013972,2]
[333192825,1721932246800,-730.35,0.00013972,2]
[333192826,1721932246810,-799.53,0.00013972,2]
[333192827,1721932246820,-500.0,0.00013972,2]
[333192828,1721932246829,-500.0,0.00013972,2]
[333192829,1721932246839,-1282.3,0.00013972,2]
[333192830,1721932246848,-6342.4,0.00013972,2]
[333192831,1721932246858,-500.0,0.00013972,2]
[333192832,1721932246867,-952.77,0.00013972,2]
[333192833,1721932246877,-500.0,0.00013972,2]
[333192834,1721932246887,-500.0,0.00013972,2]
[333192835,1721932246898,-500.0,0.00013972,2]
[333192836,1721932246909,-500.0,0.00013972,2]
[333192837,1721932246920,-500.0,0.00013972,2]
[333192838,1721932246932,-500.0,0.00013972,2]
[333192839,1721932246942,-1021.45,0.00013972,2]
[333192840,1721932246953,-500.0,0.00013972,2]
[333192841,1721932246963,-500.0,0.00013972,2]
[333192842,1721932246975,-500.0,0.00013972,2]
[333192843,1721932246985,-615.14,0.00013972,2]
[333192844,1721932246996,-1550.44,0.00013972,2]
[333192845,1721932247007,-597.37,0.00013972,2]
[333192846,1721932247018,-500.0,0.00013972,2]
[333192847,1721932247028,-500.0,0.00013972,2]
[333192848,1721932247039,-820.45,0.00013972,2]
[333192849,1721932247051,-536.20268313,0.00013972,2]
[333192850,1721932247063,-4616.0,0.00013972,2]
[333192851,1721932247073,-500.0,0.00013972,2]
[333192852,1721932247084,-7952.53,0.00013972,2]
[333192853,1721932247094,-500.0,0.00013972,2]
[333192854,1721932247104,-500.0,0.00013972,2]
[333192855,1721932247113,-500.0,0.00013972,2]
[333192856,1721932247122,-841.85,0.00013972,2]
[333192857,1721932247132,-500.0,0.00013972,2]
[333192858,1721932247141,-500.0,0.00013972,2]
[333192859,1721932247151,-655.68,0.00013972,2]
[333192860,1721932247161,-500.0,0.00013972,2]
[333192861,1721932247173,-500.0,0.00013972,2]
[333192862,1721932247183,-1449.04,0.00013972,2]
[333192863,1721932247194,-1233.01,0.00013972,2]
[333192864,1721932247210,-1303.4,0.00013972,2]
[333192865,1721932247222,-500.0,0.00013972,2]
[333192866,1721932247232,-500.0,0.00013972,2]
[333192867,1721932247242,-558.36,0.00013972,2]
[333192868,1721932247253,-909.28,0.00013972,2]
[333192869,1721932247262,-500.0,0.00013972,2]
[333192870,1721932247271,-745.63,0.00013972,2]
[333192871,1721932247284,-500.0,0.00013972,2]
[333192872,1721932247296,-1241.27,0.00013972,2]
[333192873,1721932247307,-2948.89,0.00013972,2]
[333192874,1721932247317,-1679.81,0.00013972,2]
[333192875,1721932247327,-500.0,0.00013972,2]
[333192876,1721932247337,-506.72858475,0.00013972,2]
[333192877,1721932247347,-500.0,0.00013972,2]
[333192878,1721932247358,-2457.08,0.00013972,2]
[333192879,1721932247370,-681.55,0.00013972,2]
[333192880,1721932247507,-500.0,0.00013972,2]
[333192881,1721932247517,-500.0,0.00013972,2]
[333192882,1721932247527,-500.0,0.00013972,2]
[333192883,1721932247537,-151.0,0.00013972,2]
[333192884,1721932247547,-151.0,0.00013972,2]
[333192885,1721932247557,-500.0,0.00013972,2]
[333192886,1721932247570,-988.48,0.00013972,2]
[333192887,1721932247581,-500.0,0.00013972,2]
[333192888,1721932247592,-500.0,0.00013972,2]
[333192889,1721932247602,-1356.76,0.00013972,2]
[333192890,1721932247612,-500.0,0.00013972,2]
[333192891,1721932247623,-947.61,0.00013972,2]
[333192892,1721932247633,-500.0,0.00013972,2]
[333192893,1721932247643,-1367.3,0.00013972,2]
[333192894,1721932247652,-151.0,0.00013972,2]
[333192895,1721932247661,-500.0,0.00013972,2]
[333192896,1721932247670,-1527.38,0.00013972,2]
[333192897,1721932247679,-533.43,0.00013972,2]
[333192898,1721932247688,-500.0,0.00013972,2]
[333192899,1721932247699,-705.53,0.00013972,2]
[333192900,1721932247708,-151.0,0.00013972,2]
[333192901,1721932247720,-151.0,0.00013972,2]
[333192902,1721932247729,-1293.44,0.00013972,2]
[333192903,1721932247739,-500.0,0.00013972,2]
[333192904,1721932247750,-976.33,0.00013972,2]
[333192905,1721932247760,-500.0,0.00013972,2]
[333192906,1721932247770,-500.0,0.00013972,2]
[333192907,1721932247780,-500.0,0.00013972,2]
[333192908,1721932247790,-432.116692,0.00014098,2]
[333192909,1721932247801,-455.854631,0.00014098,2]
[333192910,1721932247812,-505.0,0.00014151,2]
[333192911,1721932247823,-1409.0,0.00014151,2]
[333192912,1721932247835,-587.0,0.00014222,2]
[333192913,1721932247846,-151.0,0.00014235,2]
[333192914,1721932247857,-263.039776,0.00014235,2]
[333192915,1721932247868,-151.0,0.00014236,2]
[333192916,1721932247879,-6427.20272239,0.00014246,5]
[333192917,1721932247891,-151.0,0.00014246,2]
[333192918,1721932247901,-151.0,0.00014246,2]
[333192919,1721932247911,-500.0,0.00014246,2]
[333192920,1721932247921,-500.0,0.00014246,2]
[333192921,1721932247931,-585.68,0.00014246,2]
[333192922,1721932247942,-500.0,0.00014246,2]
[333192923,1721932247954,-500.0,0.00014246,2]
[333192924,1721932247964,-565.93,0.00014246,2]
[333192925,1721932247974,-672.46,0.00014246,2]
[333192926,1721932247984,-730.6,0.00014246,2]
[333192927,1721932247994,-500.0,0.00014246,2]
[333192928,1721932248005,-500.0,0.00014246,2]
[333192929,1721932248015,-500.0,0.00014246,2]
[333192930,1721932248026,-551.33,0.00014246,2]
[333192931,1721932248035,-500.0,0.00014246,2]
[333192932,1721932248045,-500.0,0.00014246,2]
[333192933,1721932248055,-1095.31,0.00014246,2]
[333192934,1721932248064,-500.0,0.00014246,2]